Cogmind - Beta 10.2 @@@ ROGUE MODE // 2022.01.26 @ 18:20:27 Player: Sara Result: Destroyed by S-10 Pest with Light Assault Rifle Performance ------------- Evolutions (0) 0 Regions Visited (4) 800 Robots Destroyed (1) 5 Value Destroyed (47) 47 Prototype IDs (23) 460 Alien Tech Used (0) 0 Bonus (325) 325 TOTAL SCORE: 1637 Bonus ------- Follower Combat Kills 25 Aligned with FarCom 300 Cogmind --------- Core Integrity 0/250 Matter 289/300 Energy 99/100 System Corruption 3% Temperature Cool (0) Movement Core (50) Location -9/Mines Parts ------- > --- POWER (1) -------- (None) > --- PROPULSION (2) --- (None) > --- UTILITY (2) ------ (None) > --- WEAPON (2) ------- (None) > --- INVENTORY (4) ---- Ion Engine Light Treads Small Storage Unit Guided Plasma Cannon Peak State ------------ > --- POWER ------------ (None) > --- PROPULSION ------- Aluminum Leg > --- UTILITY ---------- (None) > --- WEAPON ----------- Guided Plasma Cannon > --- INVENTORY -------- Ion Engine Light Treads Small Storage Unit [Rating: 9] Favorites ----------- Power Light Ion Engine Engine Light Ion Engine Propulsion Compact Wheel Treads Light Treads Leg Aluminum Leg Wheel Compact Wheel Utility Small Storage Unit Storage Small Storage Unit Weapon Grenade Launcher Energy Gun EM Pulse Gun Energy Cannon Guided Plasma Cannon Ballistic Gun Assault Rifle Launcher Grenade Launcher Build | -11 -10 -10 -10 -9 ------- Run | Scr Mat Min Exi Min Slots Evolved . | . . . . . Power . | . . . . . Propulsion . | . . . . . Utility . | . . . . . Weapon . | . . . . . Parts Attached 8 | 2 2 3 1 . Power 1 | . . 1 . . Engine 1 | . . 1 . . Core . | . . . . . Reactor . | . . . . . Propulsion 4 | 2 . 2 . . Treads 1 | . . 1 . . Leg 1 | . . 1 . . Wheel 2 | 2 . . . . Hover . | . . . . . Flight . | . . . . . Utility . | . . . . . Device . | . . . . . Storage . | . . . . . Processor . | . . . . . Hackware . | . . . . . Protection . | . . . . . Artifact . | . . . . . Weapon 3 | . 2 . 1 . Energy Gun . | . . . . . Energy Cannon 1 | . . . 1 . Ballistic Gun 1 | . 1 . . . Ballistic Cannon . | . . . . . Launcher 1 | . 1 . . . Special Weapon . | . . . . . Impact Weapon . | . . . . . Slashing Weapon . | . . . . . Piercing Weapon . | . . . . . Special Melee Weapon . | . . . . . Unidentified Prototypes . | . . . . . Parts Lost 7 | . . 6 . 1 Power 1 | . . 1 . . Propulsion 4 | . . 3 . 1 Utility . | . . . . . Weapon 2 | . . 2 . . Highest Loss Streak 5 | . . 5 . 1 Average Slot Usage (%) 41 | . 76 39 16 11 Engine 5 | . 14 5 . . Treads 2 | . . 7 . . Leg 7 | . . 7 14 11 Wheel 11 | . 28 10 . . Storage 6 | . 14 6 . . Ballistic Gun 3 | . 9 . . . Launcher 3 | . 10 2 . . Naked Turns 6 | . . . . 6 Heaviest Build 12 | 7 12 12 10 . Greatest Support 32 | 32 32 32 3 3 Greatest Overweight (x) 3 | . . . 3 . Average Overweight (x) . | . . . . . Largest Inventory Capacity 6 | 6 6 6 4 4 Average Capacity 4 | 6 6 4 4 4 Most Carried 6 | 6 6 5 4 4 Average Carried 4 | 6 5 3 3 4 Final Capacity 6 | 6 6 4 4 4 Final Carried 6 | 6 5 3 4 4 Class Distribution -------------------- 100% | Mutant Dominant Class ---------------- Mutant | -10/Materials Mutant | -10/Mines Mutant | -10/Exiles Mutant | -9/Mines Resources | -11 -10 -10 -10 -9 ----------- Run | Scr Mat Min Exi Min Matter Collected 250 | 202 . 48 . . Remotely . | . . . . . Salvage Created 37 | . . 37 . . Parts . | . . . . . Haulers Intercepted . | . . . . . Recyclers Shooed . | . . . . . Parts Field Recycled . | . . . . . Retrieved Matter . | . . . . . Parts Self-Destructed . | . . . . . Prevented . | . . . . . Kills | -11 -10 -10 -10 -9 ------- Run | Scr Mat Min Exi Min Combat Hostiles Destroyed 1 | . . 1 . . Melee 1 | . . 1 . . Classes Destroyed 1 | . . 1 . . Grunt 1 | . . 1 . . Best Kill Streak 1 | . . 1 . . Combat Bots Only 1 | . . 1 . . Max Kills in Single Turn 1 | . . 1 . . Gunslinging . | . . . . . Exploded . | . . . . . Melee 1 | . . 1 . . Uniques/NPCs Destroyed . | . . . . . Combat | -11 -10 -10 -10 -9 -------- Run | Scr Mat Min Exi Min Damage Taken 847 | . 72 647 . 128 Core 254 | . 22 150 . 82 Absorbed by Shields . | . . . . . Core Remaining (%) 100 | 100 . . . . Volleys Fired 1 | . . . 1 . Largest 1 | . . . 1 . Hottest 120 | . . . 120 . Shots Fired 1 | . . . 1 . Gun . | . . . . . Cannon 1 | . . . 1 . Launcher . | . . . . . Special . | . . . . . Kinetic . | . . . . . Thermal 1 | . . . 1 . Explosive . | . . . . . Electromagnetic . | . . . . . Robot Hit Streak . | . . . . . Robot Miss Streak . | . . . . . Penetration Max . | . . . . . Secondary Targets . | . . . . . Shots Hit Robots . | . . . . . Core Hits 1 | . . 1 . . Critical Hits . | . . . . . Critical Kills . | . . . . . Critical Parts Destroyed . | . . . . . Melee Attacks . | . . . . . Impact . | . . . . . Slashing . | . . . . . Piercing . | . . . . . Sneak Attacks . | . . . . . Combat Hostiles . | . . . . . Follow-up Attacks . | . . . . . Damage Inflicted 8 | . . 8 . . Guns . | . . . . . Cannons . | . . . . . Explosions . | . . . . . Melee . | . . . . . Ramming 8 | . . 8 . . Kinetic . | . . . . . Thermal . | . . . . . Explosive . | . . . . . Electromagnetic . | . . . . . Impact . | . . . . . Slashing . | . . . . . Piercing . | . . . . . Highest Corruption 3 | . . 3 3 3 Average Corruption 3 | . . 3 3 3 Corruption Purged . | . . . . . Effects 8 | . . 3 4 1 Message Errors 2 | . . . 2 . Matter Fused 2 | . . 1 1 . Energy Discharges 2 | . . 1 . 1 Data Loss (minor) 2 | . . 1 1 . Overload Shots . | . . . . . Overflow Damage . | . . . . . Projectiles . | . . . . . Explosions . | . . . . . Melee . | . . . . . Knockbacks . | . . . . . Impact . | . . . . . Kinetic . | . . . . . Secondary . | . . . . . Self-Inflicted Damage 4 | . . 4 . . Shots . | . . . . . Rammed 4 | . . 4 . . Targets Rammed 4 | . . 4 . . Kicked . | . . . . . Crushed . | . . . . . Highest Temperature 70 | . . 5 70 . Average Temperature 29 | . . 3 42 . Received Heat Transfer 291 | . . 291 . . Siege Activations . | . . . . . Robots Corrupted . | . . . . . Combat Hostiles . | . . . . . Parts Fried . | . . . . . Impact Corruptions . | . . . . . Robots Melted . | . . . . . Combat Hostiles . | . . . . . Parts Melted 1 | . . 1 . . Heat Transferred . | . . . . . Parts Sabotaged . | . . . . . Parts Stolen . | . . . . . Parts Stripped . | . . . . . Power Chain Reactions . | . . . . . Missiles Intercepted . | . . . . . Alert | -11 -10 -10 -10 -9 ------- Run | Scr Mat Min Exi Min Peak Influence 57 | . 31 57 . 30 Initial 12 | . . 12 . . Average 12 | . 8 14 . 19 Maximum Alert Level . | . . . . . Low Security (%) 100 | 100 100 100 . 100 Level 1 . | . . . . . Level 2 . | . . . . . Level 3 . | . . . . . Level 4 . | . . . . . Level 5 . | . . . . . High Security . | . . . . . Max Security . | . . . . . Squads Dispatched 1 | . 1 . . . Investigation 1 | . 1 . . . Extermination . | . . . . . Reinforcement . | . . . . . Assault . | . . . . . Garrison . | . . . . . Intercept . | . . . . . Construction Impeded . | . . . . . Haulers Reinforced . | . . . . . Stealth | -11 -10 -10 -10 -9 --------- Run | Scr Mat Min Exi Min Distress Signals 1 | . 1 . . . Communications Jammed . | . . . . . Distress Signals . | . . . . . Times Spotted 29 | . 5 18 . 6 Peak Tracking Total 14 | . 6 14 . 4 Tactical Retreats 2 | . . 1 . 1 Traps | -11 -10 -10 -10 -9 ------- Run | Scr Mat Min Exi Min Traps Triggered . | . . . . . Indirectly . | . . . . . Trap Hack Attempts . | . . . . . Triggered . | . . . . . Disarmed . | . . . . . Reprogrammed . | . . . . . Reused . | . . . . . Traps Extracted . | . . . . . Installed . | . . . . . Triggered . | . . . . . Machines | -11 -10 -10 -10 -9 ---------- Run | Scr Mat Min Exi Min Machines Disabled . | . . . . . Max in Single Turn . | . . . . . Machines Sabotaged . | . . . . . Garrisons Compromised . | . . . . . Overloaded Fab Kills . | . . . . . Fab Network Shutdowns . | . . . . . Hacking | -11 -10 -10 -10 -9 --------- Run | Scr Mat Min Exi Min Machines Accessed 5 | . 3 . 2 . Terminals 2 | . 2 . . . Fabricators . | . . . . . Repair Stations . | . . . . . Recycling Units 1 | . 1 . . . Scanalyzers . | . . . . . Garrison Access . | . . . . . Total Hacks 12 | . 7 . 5 . Successful 11 | . 6 . 5 . Failed 1 | . 1 . . . Catastrophic . | . . . . . Database Lockouts . | . . . . . Manual 6 | . 5 . 1 . Terminals 5 | . 5 . . . Fabricators . | . . . . . Repair Stations . | . . . . . Recycling Units 2 | . 2 . . . Scanalyzers . | . . . . . Garrison Access . | . . . . . Terminal Hacks 8 | . 3 . 5 . Record 4 | . . . 4 . Part Schematic 1 | . 1 . . . Terminal Index 1 | . 1 . . . Locate Traps 1 | . 1 . . . EX-Prototype ID Bank 1 | . . . 1 . Fabricator Hacks . | . . . . . Repair Station Hacks . | . . . . . Recycling Unit Hacks 1 | . 1 . . . Report Inventory 1 | . 1 . . . Scanalyzer . | . . . . . Garrison Access Hacks . | . . . . . Unauthorized Hacks 2 | . 2 . . . Terminals 1 | . 1 . . . Operators 1 | . 1 . . . Fabricators . | . . . . . Repair Stations . | . . . . . Recycling Units 1 | . 1 . . . Reject 1 | . 1 . . . Scanalyzers . | . . . . . Garrison Access . | . . . . . Data Cores Recovered . | . . . . . Used . | . . . . . Hacking Detections 1 | . 1 . . . Full Trace Events 1 | . 1 . . . Feedback Events . | . . . . . Feedback Blocked . | . . . . . Robot Schematics Acquired . | . . . . . Robots Built . | . . . . . Matter . | . . . . . Time . | . . . . . Total Robot Build Rating . | . . . . . Part Schematics Acquired 1 | . 1 . . . Parts Built . | . . . . . Matter . | . . . . . Time . | . . . . . Total Part Build Rating . | . . . . . Parts Repaired . | . . . . . Time . | . . . . . Parts Recycled . | . . . . . Recycled Matter . | . . . . . Retrieved Matter . | . . . . . Retrieved Components . | . . . . . Parts Scanalyzed . | . . . . . Part Schematics Acquired . | . . . . . Parts Damaged . | . . . . . Bothacking | -11 -10 -10 -10 -9 ------------ Run | Scr Mat Min Exi Min Used RIF Installer . | . . . . . Robots Hacked . | . . . . . Non-combat . | . . . . . Combat . | . . . . . Robot Hacks Applied . | . . . . . Relay Couplers Released . | . . . . . Robots Rewired . | . . . . . Allies Hacked . | . . . . . Hacks Repelled . | . . . . . Allies | -11 -10 -10 -10 -9 -------- Run | Scr Mat Min Exi Min Total Allies 3 | . . 3 . . Largest Group 3 | . . 3 . . Highest-Rated Group 40 | . . 40 . . Highest-Rated Ally 16 | . . 16 . . Total Orders . | . . . . . Ally Attacks 13 | . . 13 . . Total Damage 157 | . . 157 . . Kills 1 | . . 1 . . Allies Corrupted . | . . . . . Allies Melted . | . . . . . Intel | -11 -10 -10 -10 -9 ------- Run | Scr Mat Min Exi Min Robot Analysis Total . | . . . . . Derelict Logs Recovered . | . . . . . Drone Launches . | . . . . . Drone Recoveries . | . . . . . Exploration | -11 -10 -10 -10 -9 ------------- Run | Scr Mat Min Exi Min Turns Passed 514 | 9 156 160 140 49 Spaces Moved 687 | 6 153 187 244 97 Core 466 | . . 125 244 97 Treads . | . . . . . Legs . | . . . . . Wheels 221 | 6 153 62 . . Hover . | . . . . . Flight . | . . . . . Fastest Speed 50 | 100 100 50 50 50 Average Speed 68 | 100 100 66 55 50 Slowest Speed 200 | 100 100 100 200 50 Overloaded Moves . | . . . . . Propulsion Burnouts . | . . . . . Robots Hopped . | . . . . . Cave-ins Triggered . | . . . . . Exploration Rate (%) 37 | 2 30 60 61 34 Regions Visited 4 Branch Regions 3 Pre-discovered Areas 1 | . . . 1 . Known Exits Taken . | . . . . . Unknown Exits Taken 4 | 1 1 1 1 . Scrap Searched 1 | . . 1 . . Spaces Dug . | . . . . . Terrain Destroyed 1 | . . . 1 . Melee . | . . . . . Projectile 1 | . . . 1 . AOE . | . . . . . Terrain Rammed . | . . . . . Walls Destroyed . | . . . . . Machines Disabled . | . . . . . Actions | -11 -10 -10 -10 -9 --------- Run | Scr Mat Min Exi Min Total 731 | 9 155 223 247 97 Wait 27 | . 1 26 . . Move 683 | 5 152 186 243 97 Hop . | . . . . . Pick Up 2 | . . 1 1 . Fast Attach 1 | . 1 . . . Attach 5 | . 1 3 1 . Detach 2 | . . 1 1 . Swap 2 | 2 . . . . Drop 4 | 2 . 2 . . Fire 1 | . . . 1 . Melee . | . . . . . Ram 4 | . . 4 . . Kick . | . . . . . Crush . | . . . . . Escape Stasis . | . . . . . Rewire . | . . . . . Trap . | . . . . . Miscellaneous . | . . . . . Route ------- -11/Scrapyard -10/Materials -10/Mines -10/Exiles -9/Mines History --------- Turn | Location | Event 5 | -11/Scrapyard | Discovered new exit (range 3) 10 | -11/Scrapyard | Entered Materials 154 | -10/Materials | Discovered new exit (range 13) 166 | -10/Materials | Entered Mines 202 | -10/Mines | Assembled infested the area 232 | -10/Mines | Met a Derelict bent on vengeance 237 | -10/Mines | Core integrity fell below 50% 268 | -10/Mines | Lost 5 parts (1p2n2w) 293 | -10/Mines | Assisted by bots powering up and referring to "LRC-V3" 303 | -10/Mines | Build established: Mutant 324 | -10/Mines | Deemed a non-threat by the Exiles lab entrance 324 | -10/Mines | Discovered new exit (range 5) 326 | -10/Mines | Entered Exiles 340 | -10/Exiles | Met 8R-AWN 348 | -10/Exiles | Met EX-HEX 361 | -10/Exiles | Met EX-BIN 368 | -10/Exiles | Aligned with FarCom system 368 | -10/Exiles | Given EX-Vault access code 381 | -10/Exiles | Opened EX-Vault 386 | -10/Exiles | Found Gui. Plasma Cannon 416 | -10/Exiles | Warned to stay clear of 0b10 Research branches 433 | -10/Exiles | Met EX-DEC 445 | -10/Exiles | Learned location of Zion (-6) 459 | -10/Exiles | Discovered new exit (range 14) 466 | -10/Exiles | Left Exiles lab with Gui. Plasma Cannon 466 | -10/Exiles | Entered Mines 477 | -9/Mines | Core integrity fell below 20% 515 | -9/Mines | Destroyed by S-10 Pest with Light Assault Rifle Last Messages --------------- bolts, but one of the latest major bases seems to be at about -5 or -4, somewhere out beyond the Upper Caves. >>Record "MSG003537-01*" PINNED - Until our FarCom is fully operational, I strongly recommend anyone spending a while in 0b10 bring along sensors with decent range to avoid running into patrols. A Signal Interpreter is optional since I know you're all smart enough to figure out what most of the blips are by watching their behavior for a short while. >>Record "MSG004902-01*" PINNED - I saw a Programmer snooping around in the Mines recently, it's only a matter of time before they find us. We might need to prioritize getting out of here and finding a better environment less hostile to science. 00456_ OD1VQXKYBNIJK